[Event "Late-Titled-Tuesday-Blitz-September-05-2023"]
[Site "Chess.com"]
[Date "2023.09.05"]
[Round "4"]
[White "Amirreza_p"]
[Black "FaustinoOro"]
[Result "1-0"]
[WhiteElo "2595"]
[BlackElo "2853"]
[TimeControl "180+1"]
[EndTime "14:40:59 PDT"]
[Termination "Amirreza_p won by resignation"]

1. e4 {[%clk 0:02:53.6]} 1... e5 {[%clk 0:02:57]} 2. Nf3 {[%clk 0:02:53]} 2...
Nc6 {[%clk 0:02:56.8]} 3. Bc4 {[%clk 0:02:53.5]} 3... Bc5 {[%clk 0:02:56.1]} 4.
d3 {[%clk 0:02:53.7]} 4... Nf6 {[%clk 0:02:56.2]} 5. O-O {[%clk 0:02:54.3]} 5...
h6 {[%clk 0:02:56.1]} 6. c3 {[%clk 0:02:54.2]} 6... d6 {[%clk 0:02:55.9]} 7. Re1
{[%clk 0:02:53.7]} 7... a6 {[%clk 0:02:55.9]} 8. Nbd2 {[%clk 0:02:53.6]} 8...
O-O {[%clk 0:02:55.9]} 9. h3 {[%clk 0:02:52.3]} 9... Ba7 {[%clk 0:02:53.8]} 10.
Bb3 {[%clk 0:02:51.8]} 10... Re8 {[%clk 0:02:53.4]} 11. Nf1 {[%clk 0:02:51.2]}
11... Be6 {[%clk 0:02:51.2]} 12. Ng3 {[%clk 0:02:51.5]} 12... d5 {[%clk
0:02:51.4]} 13. exd5 {[%clk 0:02:47.5]} 13... Bxd5 {[%clk 0:02:51.5]} 14. Bc2
{[%clk 0:02:45.4]} 14... Qd7 {[%clk 0:02:45.6]} 15. Nh4 {[%clk 0:02:42.6]} 15...
Rad8 {[%clk 0:02:40.7]} 16. Nhf5 {[%clk 0:02:41.4]} 16... Kh8 {[%clk 0:02:11.3]}
17. Be3 {[%clk 0:02:17.9]} 17... Bxe3 {[%clk 0:02:09.5]} 18. Nxe3 {[%clk
0:02:18.8]} 18... Be6 {[%clk 0:02:09]} 19. Qf3 {[%clk 0:02:18.7]} 19... Nd5
{[%clk 0:01:54.9]} 20. Rad1 {[%clk 0:02:11.4]} 20... Qe7 {[%clk 0:01:45.9]} 21.
Nef5 {[%clk 0:02:07.3]} 21... Qg5 {[%clk 0:01:41.8]} 22. d4 {[%clk 0:01:49]}
22... Nf4 {[%clk 0:01:24.2]} 23. dxe5 {[%clk 0:01:40.5]} 23... Bd5 {[%clk
0:01:24.3]} 24. Rxd5 {[%clk 0:01:25.9]} 24... Rxd5 {[%clk 0:01:13.5]} 25. h4
{[%clk 0:01:21.9]} 25... Nh3+ {[%clk 0:00:52.3]} 26. gxh3 {[%clk 0:01:17.1]}
26... Nxe5 {[%clk 0:00:48.1]} 27. Qxd5 {[%clk 0:01:12.5]} 27... Nf3+ {[%clk
0:00:48]} 28. Qxf3 {[%clk 0:01:09.9]} 28... Rxe1+ {[%clk 0:00:48.6]} 29. Kg2
{[%clk 0:00:59.5]} 29... Qd2 {[%clk 0:00:42.4]} 30. Qd3 {[%clk 0:00:57.8]} 30...
Qxd3 {[%clk 0:00:35.8]} 31. Bxd3 {[%clk 0:00:58.7]} 31... Ra1 {[%clk 0:00:34.6]}
32. Bc4 {[%clk 0:00:44.9]} 32... Kg8 {[%clk 0:00:34.6]} 33. Ne3 {[%clk
0:00:38.5]} 33... b5 {[%clk 0:00:27.6]} 34. Bd5 {[%clk 0:00:35.8]} 34... c5
{[%clk 0:00:25.8]} 35. Ne4 {[%clk 0:00:29.3]} 35... c4 {[%clk 0:00:25.6]} 36. b3
{[%clk 0:00:23.9]} 36... cxb3 {[%clk 0:00:19.6]} 37. Bxb3 {[%clk 0:00:24.8]}
37... Kf8 {[%clk 0:00:19.1]} 38. Nd6 {[%clk 0:00:23.7]} 38... f6 {[%clk
0:00:16.7]} 39. c4 {[%clk 0:00:23.2]} 39... bxc4 {[%clk 0:00:11.4]} 40. Bxc4
{[%clk 0:00:24.1]} 40... a5 {[%clk 0:00:12]} 41. Bb3 {[%clk 0:00:19.9]} 41... g6
{[%clk 0:00:12.1]} 42. Nb7 {[%clk 0:00:18.7]} 42... a4 {[%clk 0:00:11.7]} 43.
Bxa4 {[%clk 0:00:18.9]} 43... Rxa2 {[%clk 0:00:12]} 44. Bc6 {[%clk 0:00:19.1]}
44... Kg7 {[%clk 0:00:11.6]} 45. Be4 {[%clk 0:00:19.3]} 45... f5 {[%clk
0:00:11.6]} 46. Bf3 {[%clk 0:00:18.5]} 46... Kf6 {[%clk 0:00:11.7]} 47. Nc5
{[%clk 0:00:17.4]} 47... g5 {[%clk 0:00:11.4]} 48. hxg5+ {[%clk 0:00:16.1]}
48... hxg5 {[%clk 0:00:12.3]} 49. Nd5+ {[%clk 0:00:16.1]} 49... Ke5 {[%clk
0:00:11.4]} 50. Ne3 {[%clk 0:00:15.1]} 50... Kf6 {[%clk 0:00:08.3]} 51. Nd3
{[%clk 0:00:15.1]} 51... Ra3 {[%clk 0:00:08.2]} 52. Nb4 {[%clk 0:00:15.4]} 52...
Rb3 {[%clk 0:00:08.3]} 53. Nbd5+ {[%clk 0:00:15.7]} 53... Ke5 {[%clk 0:00:08.9]}
54. Ne7 {[%clk 0:00:14.3]} 54... f4 {[%clk 0:00:07.6]} 55. Ng4+ {[%clk
0:00:14.4]} 55... Kd6 {[%clk 0:00:06.8]} 56. Nf5+ {[%clk 0:00:13.4]} 56... Kc7
{[%clk 0:00:06.9]} 57. Ng7 {[%clk 0:00:12.9]} 57... Kd6 {[%clk 0:00:06.9]} 58.
Nf5+ {[%clk 0:00:12.7]} 58... Kd7 {[%clk 0:00:06.8]} 59. Nd4 {[%clk 0:00:12.8]}
59... Rb4 {[%clk 0:00:06.7]} 60. Ne2 {[%clk 0:00:13.2]} 60... Ke6 {[%clk
0:00:06.5]} 61. Ng1 {[%clk 0:00:13.7]} 61... Kf5 {[%clk 0:00:06.8]} 62. Be2
{[%clk 0:00:14]} 62... Rb2 {[%clk 0:00:07]} 63. Bd3+ {[%clk 0:00:13.7]} 63...
Ke6 {[%clk 0:00:07.7]} 64. Nf3 {[%clk 0:00:14]} 1-0

[Event "Late-Titled-Tuesday-Blitz-September-05-2023"]
[Site "Chess.com"]
[Date "2023.09.05"]
[Round "4"]
[White "azikom"]
[Black "Kostukov_Alex"]
[Result "1-0"]
[WhiteElo "2669"]
[BlackElo "2402"]
[TimeControl "180+1"]
[EndTime "14:41:01 PDT"]
[Termination "azikom won on time"]

1. c4 {[%clk 0:02:59.3]} 1... c5 {[%clk 0:02:59.2]} 2. Nc3 {[%clk 0:02:58.1]}
2... Nf6 {[%clk 0:03:00.1]} 3. g3 {[%clk 0:02:56.7]} 3... g6 {[%clk 0:03:00.6]}
4. Bg2 {[%clk 0:02:55.9]} 4... Bg7 {[%clk 0:03:01.3]} 5. a3 {[%clk 0:02:56.5]}
5... O-O {[%clk 0:03:00]} 6. b4 {[%clk 0:02:56.1]} 6... d6 {[%clk 0:02:51.5]} 7.
bxc5 {[%clk 0:02:50.7]} 7... dxc5 {[%clk 0:02:49.6]} 8. Bb2 {[%clk 0:02:50.4]}
8... Nc6 {[%clk 0:02:46.5]} 9. d3 {[%clk 0:02:48.2]} 9... Qd6 {[%clk 0:02:36.3]}
10. Rb1 {[%clk 0:02:47.3]} 10... b6 {[%clk 0:02:35.7]} 11. Nf3 {[%clk
0:02:40.9]} 11... Bb7 {[%clk 0:02:35.4]} 12. Nb5 {[%clk 0:02:41.1]} 12... Qd7
{[%clk 0:02:33.9]} 13. O-O {[%clk 0:02:41]} 13... Rfd8 {[%clk 0:02:30.8]} 14.
Ba1 {[%clk 0:02:34.5]} 14... Ng4 {[%clk 0:02:16.1]} 15. Bxg7 {[%clk 0:02:32.7]}
15... Kxg7 {[%clk 0:02:17]} 16. Qc1 {[%clk 0:02:31.6]} 16... Nge5 {[%clk
0:02:04.4]} 17. Qb2 {[%clk 0:02:29.3]} 17... f6 {[%clk 0:02:04.3]} 18. Rfc1
{[%clk 0:02:08.2]} 18... Rab8 {[%clk 0:01:58.9]} 19. Nxe5 {[%clk 0:02:02]} 19...
Nxe5 {[%clk 0:01:58.5]} 20. Bxb7 {[%clk 0:01:58.1]} 20... Rxb7 {[%clk
0:01:57.7]} 21. a4 {[%clk 0:01:58.6]} 21... Nc6 {[%clk 0:01:52]} 22. Nc3 {[%clk
0:01:54]} 22... Kf7 {[%clk 0:01:36.4]} 23. Qd2 {[%clk 0:01:50.2]} 23... Kg7
{[%clk 0:01:34.1]} 24. h4 {[%clk 0:01:44.1]} 24... h5 {[%clk 0:01:27.1]} 25. Qe3
{[%clk 0:01:41.7]} 25... Nd4 {[%clk 0:01:16.9]} 26. Rb2 {[%clk 0:01:40.2]} 26...
Nf5 {[%clk 0:01:14]} 27. Qe4 {[%clk 0:01:35.4]} 27... Nd6 {[%clk 0:01:10.6]} 28.
Qf3 {[%clk 0:01:33.1]} 28... Nf5 {[%clk 0:01:10.5]} 29. a5 {[%clk 0:01:27.7]}
29... Rdb8 {[%clk 0:01:08.1]} 30. axb6 {[%clk 0:01:24.4]} 30... Rxb6 {[%clk
0:01:06]} 31. Ra2 {[%clk 0:01:22.2]} 31... Nd4 {[%clk 0:01:02.8]} 32. Qe3 {[%clk
0:01:19.8]} 32... Re6 {[%clk 0:01:02.2]} 33. Qf4 {[%clk 0:01:12.3]} 33... Rb3
{[%clk 0:01:01.2]} 34. Ne4 {[%clk 0:01:05.8]} 34... Re5 {[%clk 0:00:57.5]} 35.
Re1 {[%clk 0:00:47.4]} 35... Qb7 {[%clk 0:00:46.6]} 36. Nxc5 {[%clk 0:00:22]}
36... Nf3+ {[%clk 0:00:28.4]} 37. Qxf3 {[%clk 0:00:21.7]} 37... Qxf3 {[%clk
0:00:27.5]} 38. Nxb3 {[%clk 0:00:20.7]} 38... Qb7 {[%clk 0:00:24.4]} 39. Nd4
{[%clk 0:00:16.2]} 39... g5 {[%clk 0:00:24.7]} 40. hxg5 {[%clk 0:00:15]} 40...
Rxg5 {[%clk 0:00:22.1]} 41. Nf3 {[%clk 0:00:14.4]} 41... Rg4 {[%clk 0:00:21.2]}
42. Rea1 {[%clk 0:00:14.5]} 42... Qc6 {[%clk 0:00:17.5]} 43. Rxa7 {[%clk
0:00:13.6]} 43... Qe6 {[%clk 0:00:17.7]} 44. R1a2 {[%clk 0:00:13.2]} 44... h4
{[%clk 0:00:15.3]} 45. Nxh4 {[%clk 0:00:13]} 45... Rxh4 {[%clk 0:00:14.5]} 46.
gxh4 {[%clk 0:00:13.2]} 46... Qg4+ {[%clk 0:00:13.9]} 47. Kf1 {[%clk 0:00:13.1]}
47... Kf7 {[%clk 0:00:11.5]} 48. R7a5 {[%clk 0:00:10.6]} 48... Qxh4 {[%clk
0:00:11.4]} 49. Ke1 {[%clk 0:00:10.5]} 49... Qh2 {[%clk 0:00:09.7]} 50. f3
{[%clk 0:00:09.2]} 50... Qg1+ {[%clk 0:00:09.1]} 51. Kd2 {[%clk 0:00:09.4]}
51... Qb1 {[%clk 0:00:08.7]} 52. R5a3 {[%clk 0:00:08.6]} 52... Qb4+ {[%clk
0:00:08.2]} 53. Ke3 {[%clk 0:00:08.8]} 53... Qc5+ {[%clk 0:00:08.3]} 54. Kd2
{[%clk 0:00:09.1]} 54... Qb4+ {[%clk 0:00:07.9]} 55. Kd1 {[%clk 0:00:09]} 55...
Ke6 {[%clk 0:00:05.1]} 56. Ra6+ {[%clk 0:00:07.9]} 56... Ke5 {[%clk 0:00:03.1]}
57. R6a4 {[%clk 0:00:08.1]} 57... Qb3+ {[%clk 0:00:02.5]} 58. Kd2 {[%clk
0:00:08.3]} 1-0

[Event "Late-Titled-Tuesday-Blitz-September-05-2023"]
[Site "Chess.com"]
[Date "2023.09.05"]
[Round "4"]
[White "kleinebeer98"]
[Black "BogdanDeac"]
[Result "1/2-1/2"]
[WhiteElo "2848"]
[BlackElo "2994"]
[TimeControl "180+1"]
[EndTime "14:41:03 PDT"]
[Termination "Game drawn by agreement"]

1. e4 {[%clk 0:03:00.9]} 1... e5 {[%clk 0:02:59.5]} 2. Bc4 {[%clk 0:02:59.6]}
2... Nf6 {[%clk 0:02:59.2]} 3. d3 {[%clk 0:02:59.8]} 3... Bc5 {[%clk 0:02:54.9]}
4. Nc3 {[%clk 0:02:56.7]} 4... c6 {[%clk 0:02:54]} 5. Nf3 {[%clk 0:02:54.9]}
5... d6 {[%clk 0:02:54.1]} 6. a4 {[%clk 0:02:51.4]} 6... h6 {[%clk 0:02:52.9]}
7. O-O {[%clk 0:02:50.3]} 7... O-O {[%clk 0:02:51.9]} 8. h3 {[%clk 0:02:44.4]}
8... Re8 {[%clk 0:02:51.8]} 9. Ba2 {[%clk 0:02:42.4]} 9... Nbd7 {[%clk
0:02:49.4]} 10. Ne2 {[%clk 0:02:40.5]} 10... Nf8 {[%clk 0:02:34.9]} 11. Ng3
{[%clk 0:02:38.1]} 11... Ng6 {[%clk 0:02:35.1]} 12. c3 {[%clk 0:02:38.6]} 12...
d5 {[%clk 0:02:35.5]} 13. Re1 {[%clk 0:02:33.8]} 13... Be6 {[%clk 0:02:16.5]}
14. Qc2 {[%clk 0:02:22.4]} 14... Bd6 {[%clk 0:02:09.9]} 15. Be3 {[%clk
0:02:15.7]} 15... a5 {[%clk 0:02:05.8]} 16. Bb3 {[%clk 0:01:40.6]} 16... Qc7
{[%clk 0:02:01.1]} 17. Rad1 {[%clk 0:01:41.3]} 17... Rad8 {[%clk 0:02:00.9]} 18.
Rd2 {[%clk 0:01:05.5]} 18... Bf8 {[%clk 0:01:20.9]} 19. Red1 {[%clk 0:00:52.4]}
19... c5 {[%clk 0:01:12.6]} 20. exd5 {[%clk 0:00:42.2]} 20... Bxd5 {[%clk
0:01:08.4]} 21. Ne4 {[%clk 0:00:38.3]} 21... Qc6 {[%clk 0:00:44.4]} 22. Nxf6+
{[%clk 0:00:33]} 22... Qxf6 {[%clk 0:00:45]} 23. Bxd5 {[%clk 0:00:29.8]} 23...
Rxd5 {[%clk 0:00:45.9]} 24. Qb3 {[%clk 0:00:30.6]} 24... Qc6 {[%clk 0:00:46.1]}
25. c4 {[%clk 0:00:18.7]} 25... Rd6 {[%clk 0:00:37.9]} 26. Re1 {[%clk
0:00:13.7]} 26... Red8 {[%clk 0:00:32.3]} 27. Qc2 {[%clk 0:00:14.3]} 27... f5
{[%clk 0:00:28.3]} 28. Rdd1 {[%clk 0:00:13.2]} 28... b6 {[%clk 0:00:19.5]} 29.
Bc1 {[%clk 0:00:12.7]} 29... e4 {[%clk 0:00:08.3]} 30. dxe4 {[%clk 0:00:10.5]}
30... Rxd1 {[%clk 0:00:06.8]} 31. Rxd1 {[%clk 0:00:11.4]} 31... Qxe4 {[%clk
0:00:05]} 32. Qxe4 {[%clk 0:00:10.2]} 32... Rxd1+ {[%clk 0:00:05.6]} 33. Qe1
{[%clk 0:00:11.1]} 33... Rxe1+ {[%clk 0:00:06]} 34. Nxe1 {[%clk 0:00:12]} 34...
Ne5 {[%clk 0:00:04.7]} 35. b3 {[%clk 0:00:12.6]} 35... Bd6 {[%clk 0:00:05]} 36.
Kf1 {[%clk 0:00:12.4]} 36... g5 {[%clk 0:00:04]} 37. Ke2 {[%clk 0:00:12.2]}
37... Nc6 {[%clk 0:00:04]} 38. Nc2 {[%clk 0:00:12.2]} 38... Kf7 {[%clk
0:00:04.1]} 39. g4 {[%clk 0:00:12.4]} 39... Ke6 {[%clk 0:00:04.1]} 40. f3 {[%clk
0:00:11.3]} 40... f4 {[%clk 0:00:03.7]} 41. Kd3 {[%clk 0:00:10.8]} 41... Be5
{[%clk 0:00:03.4]} 42. Ke4 {[%clk 0:00:10.6]} 42... Nd8 {[%clk 0:00:03.3]} 43.
Bd2 {[%clk 0:00:07.7]} 43... Nf7 {[%clk 0:00:03.4]} 44. Kd3 {[%clk 0:00:07.8]}
44... Nd6 {[%clk 0:00:03.6]} 45. Be1 {[%clk 0:00:08.4]} 45... Bb2 {[%clk
0:00:03.6]} 46. h4 {[%clk 0:00:08.7]} 46... Nf7 {[%clk 0:00:03.5]} 47. Ke4
{[%clk 0:00:07.3]} 47... Nd6+ {[%clk 0:00:03.5]} 48. Kd3 {[%clk 0:00:07.5]}
48... Nf7 {[%clk 0:00:03.9]} 49. Bf2 {[%clk 0:00:07.5]} 49... Ne5+ {[%clk
0:00:03.6]} 50. Ke4 {[%clk 0:00:08.3]} 50... Nf7 {[%clk 0:00:04.1]} 51. Ne1
{[%clk 0:00:08]} 51... Nd6+ {[%clk 0:00:04]} 52. Kd3 {[%clk 0:00:08.6]} 52...
Nf7 {[%clk 0:00:04.1]} 53. Kc2 {[%clk 0:00:07.8]} 53... Bf6 {[%clk 0:00:03.8]}
54. hxg5 {[%clk 0:00:07]} 54... hxg5 {[%clk 0:00:04]} 55. Nd3 {[%clk 0:00:06.3]}
55... Bg7 {[%clk 0:00:03.8]} 56. Ne1 {[%clk 0:00:05.5]} 56... Ne5 {[%clk
0:00:03.5]} 57. Kd2 {[%clk 0:00:05.4]} 57... Bf6 {[%clk 0:00:03.2]} 58. Ke2
{[%clk 0:00:06]} 58... Nc6 {[%clk 0:00:03.7]} 59. Nc2 {[%clk 0:00:06.1]} 59...
Bc3 {[%clk 0:00:03.7]} 60. Kd3 {[%clk 0:00:06.5]} 60... Bb2 {[%clk 0:00:03.8]}
61. Ke4 {[%clk 0:00:07]} 61... Be5 {[%clk 0:00:04.1]} 62. Bg1 {[%clk 0:00:05.8]}
62... Nd8 {[%clk 0:00:04.1]} 63. Bf2 {[%clk 0:00:05.9]} 63... Nf7 {[%clk
0:00:04.2]} 64. Bg1 {[%clk 0:00:06.7]} 64... Nd6+ {[%clk 0:00:04.5]} 65. Kd3
{[%clk 0:00:07.5]} 65... Ne8 {[%clk 0:00:04.5]} 66. Bf2 {[%clk 0:00:07.5]} 66...
Ng7 {[%clk 0:00:04.2]} 67. Ke4 {[%clk 0:00:07.5]} 67... Ne8 {[%clk 0:00:03.7]}
1/2-1/2

[Event "Late-Titled-Tuesday-Blitz-September-05-2023"]
[Site "Chess.com"]
[Date "2023.09.05"]
[Round "4"]
[White "slidingknight2775"]
[Black "platy3"]
[Result "0-1"]
[WhiteElo "2592"]
[BlackElo "2906"]
[TimeControl "180+1"]
[EndTime "14:41:17 PDT"]
[Termination "platy3 won by resignation"]

1. d4 {[%clk 0:03:00.9]} 1... Nf6 {[%clk 0:02:56.5]} 2. c4 {[%clk 0:03:01.2]}
2... e6 {[%clk 0:02:52]} 3. Nc3 {[%clk 0:03:01.4]} 3... Bb4 {[%clk 0:02:51.6]}
4. e3 {[%clk 0:03:02]} 4... O-O {[%clk 0:02:51.1]} 5. Bd2 {[%clk 0:03:02.6]}
5... Re8 {[%clk 0:02:50.1]} 6. a3 {[%clk 0:02:59.6]} 6... Bf8 {[%clk 0:02:43.2]}
7. Nf3 {[%clk 0:02:56.2]} 7... d5 {[%clk 0:02:40.6]} 8. cxd5 {[%clk 0:02:54.6]}
8... exd5 {[%clk 0:02:40.6]} 9. Bd3 {[%clk 0:02:48.5]} 9... Bg4 {[%clk 0:02:40]}
10. h3 {[%clk 0:02:45.3]} 10... Bh5 {[%clk 0:02:39.9]} 11. O-O {[%clk
0:02:45.4]} 11... c6 {[%clk 0:02:40]} 12. b4 {[%clk 0:02:33.6]} 12... Nbd7
{[%clk 0:02:39]} 13. Rb1 {[%clk 0:02:29.6]} 13... Ne4 {[%clk 0:02:38.8]} 14. Be2
{[%clk 0:02:25.4]} 14... Nxc3 {[%clk 0:02:31.2]} 15. Bxc3 {[%clk 0:02:25.4]}
15... Bd6 {[%clk 0:02:32]} 16. a4 {[%clk 0:02:16.8]} 16... Nf6 {[%clk
0:02:29.3]} 17. b5 {[%clk 0:02:10.6]} 17... Ne4 {[%clk 0:02:29.2]} 18. Be1
{[%clk 0:02:09.4]} 18... c5 {[%clk 0:02:14.8]} 19. dxc5 {[%clk 0:02:01.3]} 19...
Bxc5 {[%clk 0:02:15.7]} 20. Nd4 {[%clk 0:01:59.2]} 20... Bxe2 {[%clk 0:02:07.5]}
21. Nxe2 {[%clk 0:01:59.1]} 21... Qd6 {[%clk 0:02:07.1]} 22. Nc3 {[%clk
0:01:44.8]} 22... Rad8 {[%clk 0:02:00.7]} 23. Nxe4 {[%clk 0:01:36.4]} 23... Rxe4
{[%clk 0:02:01.6]} 24. Bc3 {[%clk 0:01:14.3]} 24... b6 {[%clk 0:01:55.3]} 25. a5
{[%clk 0:00:59.2]} 25... h6 {[%clk 0:01:52.3]} 26. axb6 {[%clk 0:00:59.2]} 26...
axb6 {[%clk 0:01:53.2]} 27. Qf3 {[%clk 0:00:57.2]} 27... Rc4 {[%clk 0:01:49]}
28. Rb3 {[%clk 0:00:49.2]} 28... Qg6 {[%clk 0:01:46.3]} 29. Be5 {[%clk
0:00:41.7]} 29... Qc2 {[%clk 0:01:40.8]} 30. Rbb1 {[%clk 0:00:38.3]} 30... Qe4
{[%clk 0:01:28.5]} 31. Qg3 {[%clk 0:00:27.6]} 31... Bf8 {[%clk 0:01:23.9]} 32.
Bc7 {[%clk 0:00:23.6]} 32... Rd7 {[%clk 0:01:13.3]} 33. Bxb6 {[%clk 0:00:23]}
33... Rd6 {[%clk 0:01:14.1]} 34. Bd4 {[%clk 0:00:20.4]} 34... Rg6 {[%clk
0:01:14.4]} 35. Qh2 {[%clk 0:00:19.6]} 35... Bd6 {[%clk 0:01:10.8]} 36. Qh1
{[%clk 0:00:19.7]} 36... Bb8 {[%clk 0:00:53.1]} 37. b6 {[%clk 0:00:18.2]} 37...
Rgc6 {[%clk 0:00:53.8]} 38. g3 {[%clk 0:00:15.1]} 38... Qe6 {[%clk 0:00:50]} 39.
Qf3 {[%clk 0:00:14.2]} 39... Qxh3 {[%clk 0:00:36.2]} 40. Qxd5 {[%clk 0:00:14.1]}
40... Bxg3 {[%clk 0:00:36.9]} 41. Qg2 {[%clk 0:00:11.5]} 41... Qxg2+ {[%clk
0:00:36.5]} 42. Kxg2 {[%clk 0:00:12.4]} 42... Bb8 {[%clk 0:00:36.7]} 43. Kf3
{[%clk 0:00:10.6]} 43... g5 {[%clk 0:00:35.3]} 44. Ke2 {[%clk 0:00:08.6]} 44...
Kh7 {[%clk 0:00:34.1]} 45. Rh1 {[%clk 0:00:08.2]} 45... Kg6 {[%clk 0:00:34.4]}
46. Kd3 {[%clk 0:00:07.1]} 46... Rc2 {[%clk 0:00:31.3]} 47. f3 {[%clk
0:00:07.1]} 47... Ra2 {[%clk 0:00:28.6]} 48. Ra1 {[%clk 0:00:06.5]} 48... Rf2
{[%clk 0:00:21.6]} 49. Ra8 {[%clk 0:00:05.3]} 49... Rc8 {[%clk 0:00:08]} 50. b7
{[%clk 0:00:05.3]} 50... Rd8 {[%clk 0:00:06.5]} 51. Rb1 {[%clk 0:00:04.8]} 51...
Rxf3 {[%clk 0:00:05.1]} 52. Rxb8 {[%clk 0:00:05.2]} 52... Rxb8 {[%clk 0:00:05]}
53. Be5 {[%clk 0:00:05.8]} 53... Rxb7 {[%clk 0:00:03.9]} 54. Rxb7 {[%clk
0:00:05.5]} 54... h5 {[%clk 0:00:04.6]} 55. Rb6+ {[%clk 0:00:05]} 55... f6
{[%clk 0:00:05.1]} 56. Ke4 {[%clk 0:00:03.3]} 56... g4 {[%clk 0:00:03.5]} 57.
Bd4 {[%clk 0:00:03.3]} 57... h4 {[%clk 0:00:04.1]} 58. Rb1 {[%clk 0:00:03.1]}
58... h3 {[%clk 0:00:04.4]} 59. Rh1 {[%clk 0:00:02.2]} 59... f5+ {[%clk
0:00:04.7]} 60. Kd3 {[%clk 0:00:02.6]} 60... Kh5 {[%clk 0:00:04.1]} 61. Ke2
{[%clk 0:00:03]} 61... Rg3 {[%clk 0:00:03.7]} 62. Be5 {[%clk 0:00:02.9]} 62...
Rg2+ {[%clk 0:00:04.1]} 63. Ke1 {[%clk 0:00:03.4]} 63... Kh4 {[%clk 0:00:04.8]}
64. Bf4 {[%clk 0:00:03.7]} 64... g3 {[%clk 0:00:04.9]} 65. Kf1 {[%clk
0:00:04.3]} 65... Kg4 {[%clk 0:00:05.2]} 66. Rg1 {[%clk 0:00:04.4]} 66... Rf2+
{[%clk 0:00:05.7]} 67. Ke1 {[%clk 0:00:04.6]} 67... Rf3 {[%clk 0:00:06.3]} 68.
Ke2 {[%clk 0:00:03.7]} 68... h2 {[%clk 0:00:06.9]} 69. Rh1 {[%clk 0:00:03.7]}
69... Rf2+ {[%clk 0:00:07.3]} 70. Ke1 {[%clk 0:00:03.8]} 70... Rxf4 {[%clk
0:00:07.7]} 71. exf4 {[%clk 0:00:03.8]} 71... g2 {[%clk 0:00:08.4]} 72. Rxh2
{[%clk 0:00:04]} 72... g1=Q+ {[%clk 0:00:07.9]} 0-1